fUST/lending_fUST_20240729
["ID","MTS","AMOUNT","RATE_DAILY","PERIOD"]
[333527157,1722231017898,155.33449448,0.00013776,2]
[333527158,1722231017919,91.82271928,0.00013776,2]
[333527194,1722231032386,-206.67743384,0.00013776,2]
[333527195,1722231032396,-155.17398573,0.00014589,2]
[333527196,1722231032406,-10279.54065323,0.00014589,2]
[333527197,1722231032417,-4716.35279289,0.00014589,2]
[333527198,1722231032430,-300.0,0.00014672,2]
[333527199,1722231032446,-17582.01315209,0.00014673,2]
[333527226,1722231038483,-218.41100335,0.00014589,2]
[333527228,1722231038493,-600.34408419,0.00014589,2]
[333527267,1722231046435,-448.85951843,0.00014589,2]
[333527271,1722231806222,533.65002993,9.999e-05,2]
[333527272,1722231808718,206.14701607,9.999e-05,2]
[333527273,1722231831590,289.24847422,9.999e-05,2]
[333527274,1722231831818,155.01653755,9.999e-05,2]
[333527275,1722231841049,1051.87556991,9.999e-05,2]
[333527276,1722231842868,569.95275338,9.999e-05,2]
[333527277,1722231845191,156.51267575,9.999e-05,2]
[333527278,1722231845747,155.06226822,9.999e-05,2]
[333527279,1722231847865,167.28826874,9.999e-05,2]
[333527280,1722231863501,783.06362585,9.999e-05,2]
[333527281,1722231868291,154.90993244,0.0001,2]
[333527282,1722231872779,9860.79410587,9.999e-05,2]
[333527283,1722231886323,160.54318849,9.999e-05,2]
[333527284,1722231894133,154.90681867,9.999e-05,2]
[333527285,1722231898946,200.6390578,0.0001,2]
[333527286,1722231905273,481.44088739,9.999e-05,2]
[333527287,1722231912833,154.76012181,9.999e-05,2]
[333527288,1722231921126,190.66734536,9.999e-05,2]
[333527289,1722231936000,287.98330508,0.0001,2]
[333527290,1722231939462,234.59791715,9.999e-05,2]
[333527291,1722231940322,375.7190477,9.999e-05,2]
[333527292,1722231967616,155.08301882,9.999e-05,2]
[333527293,1722231981775,174.28088766,0.0001,2]
[333527294,1722231988958,579.33558754,0.0001,2]
[333527295,1722231996871,179.61877808,0.0001,2]
[333527296,1722231999012,271.12163606,9.999e-05,2]
[333527297,1722232025676,16276.9865334,0.0001,2]
[333527298,1722232033480,-252.98985031,0.0001202,2]
[333527299,1722232033502,-300.0,0.0001212,2]
[333527300,1722232033523,-300.0,0.0001212,2]
[333527301,1722232033544,-179.9281257,0.00012121,2]
[333527302,1722232033566,-162.92919601,0.00012121,2]
[333527303,1722232033587,-665.64541926,0.00012121,2]
[333527304,1722232033607,-221.64873536,0.00012121,2]
[333527305,1722232033629,-288.28494131,0.00012121,2]
[333527306,1722232033649,-163.98875681,0.00012121,2]
[333527307,1722232033670,-404.72009862,0.00012121,2]
[333527308,1722232033690,-602.2763395,0.00012121,2]
[333527309,1722232033711,-241.38367714,0.00012121,2]
[333527310,1722232033732,-157.11707589,0.00012121,2]
[333527311,1722232033756,-175.208849,0.00012986,2]
[333527312,1722232033777,-420.0,0.00013332,2]
[333527313,1722232033797,-527.70978985,0.000136,2]
[333527314,1722232033819,-527.70978985,0.000136,2]
[333527315,1722232033845,-500.0,0.00013698,2]
[333527316,1722232033867,-500.0,0.00013698,2]
[333527317,1722232033889,-412.62106815,0.00013698,2]
[333527318,1722232033910,-248.30802451,0.00013699,2]
[333527319,1722232034037,-175.729627,0.00013753,2]
[333527320,1722232034060,-175.729627,0.00013991,2]
[333527321,1722232034080,-1092.89658495,0.00014,2]
[333527322,1722232034102,-175.729627,0.0001423,2]
[333527323,1722232034133,-322.848697,0.00014247,2]
[333527324,1722232034154,-153.0,0.00014341,2]
[333527325,1722232034175,-153.9100557,0.000144,2]
[333527326,1722232034196,-153.0,0.000144,2]
[333527327,1722232034218,-397.84540298,0.0001442,2]
[333527328,1722232034238,-308.66592258,0.00014427,2]
[333527329,1722232034261,-175.729627,0.00014469,2]
[333527330,1722232034281,-831.58348736,0.00014589,2]
[333527331,1722232034303,-587.0,0.00014665,2]
[333527332,1722232034324,-216.99079395,0.00014672,2]
[333527333,1722232034345,-376.10062324,0.00014672,2]
[333527334,1722232034366,-1761.14515625,0.00014673,2]
[333527335,1722232042107,-185.61984426,0.00012121,2]
[333527336,1722232042129,-405.78479712,0.00012121,2]
[333527337,1722232042152,-862.61209494,0.00012121,2]
[333527338,1722232042172,-178.25385381,0.00012121,2]
[333527339,1722232074901,155.08780149,9.999e-05,2]
[333527340,1722232080180,197.07699649,9.999e-05,2]
[333527341,1722232085325,160.02872969,9.999e-05,2]
[333527342,1722232087346,201.30530872,9.999e-05,2]
[333527343,1722232088418,160.4434318,9.999e-05,2]
[333527344,1722232089309,250.49769849,9.999e-05,2]
[333527345,1722232092106,155.55129283,9.999e-05,2]
[333527346,1722232097051,544.39704628,9.999e-05,2]
[333527347,1722232100201,154.91450065,9.999e-05,2]
[333527348,1722232101123,188.69289714,9.999e-05,2]
[333527349,1722232102078,268.19052168,9.999e-05,2]
[333527350,1722232102399,155.22571178,9.999e-05,2]
[333527351,1722232104658,154.71377951,9.999e-05,2]
[333527352,1722232105405,156.0078453,9.999e-05,2]
[333527353,1722232110790,154.84428152,9.999e-05,2]
[333527354,1722232111567,211.59461707,9.999e-05,2]
[333527355,1722232115926,154.91396585,9.999e-05,2]
[333527356,1722232128791,249.27725271,9.999e-05,2]
[333527358,1722232161132,-255.06,0.00010959,2]
[333527359,1722232161154,-212.55,0.00010959,2]
[333527360,1722232161176,-177.12,0.00010959,2]
[333527361,1722232161197,-885.65,0.00010959,2]
[333527362,1722232161218,-300.0,0.00012119,2]
[333527363,1722232161242,-1991.8655524,0.0001212,2]
[333527364,1722232161262,-481.5179287,0.0001212,2]
[333527365,1722232161283,-165.64301,0.00012343,2]
[333527366,1722232161306,-245.111682,0.00013029,2]
[333527367,1722232161329,-245.111682,0.00013065,2]
[333527368,1722232161352,-245.111682,0.00013101,2]
[333527369,1722232161374,-245.111682,0.00013137,2]
[333527370,1722232161394,-245.111682,0.00013172,2]
[333527371,1722232161415,-245.111682,0.00013208,2]
[333527372,1722232161439,-245.111682,0.00013244,2]
[333527373,1722232161462,-245.111682,0.00013279,2]
[333527374,1722232161486,-245.111682,0.00013315,2]
[333527375,1722232161507,-245.111682,0.00013351,2]
[333527376,1722232161530,-245.111682,0.00013387,2]
[333527377,1722232161550,-245.111682,0.00013422,2]
[333527378,1722232161571,-245.111682,0.00013458,2]
[333527379,1722232161593,-245.111682,0.00013494,2]
[333527380,1722232161614,-245.111682,0.0001353,2]
[333527381,1722232161635,-245.111682,0.00013565,2]
[333527382,1722232161865,-245.111682,0.00013601,2]
[333527383,1722232161888,-245.111682,0.00013637,2]
[333527384,1722232161909,-245.111682,0.00013672,2]
[333527385,1722232161930,-245.111682,0.00013708,2]
[333527386,1722232161966,-165.64301,0.00014025,2]
[333527387,1722232161989,-183.814464,0.00014247,2]
[333527388,1722232169943,158.2076816,0.0001212,2]
[333527393,1722232212397,1991.8655524,0.0001212,2]
[333527394,1722232220007,1157.05047166,0.0001212,2]
[333527444,1722232239157,-156.95789646,0.00014672,2]
[333527445,1722232239168,-14629.46680338,0.00014673,2]
[333527446,1722232239180,-263.27043627,0.00014688,2]
[333527447,1722232239189,-500.0,0.00014689,2]
[333527448,1722232239199,-500.0,0.00014689,2]
[333527449,1722232239208,-500.0,0.00014689,2]
[333527450,1722232239218,-500.0,0.00014689,2]
[333527451,1722232239227,-500.0,0.00014689,2]
[333527452,1722232239237,-187.92085274,0.00014689,2]
[333527453,1722232239247,-500.0,0.00014689,2]
[333527454,1722232239256,-500.0,0.00014689,2]
[333527455,1722232239266,-122.55457592,0.00014689,2]
[333527456,1722232239278,-377.44542408,0.00014689,2]
[333527457,1722232239289,-500.0,0.00014689,2]
[333527458,1722232239299,-500.0,0.00014689,2]
[333527459,1722232239309,-500.0,0.00014689,2]
[333527460,1722232239318,-500.0,0.00014689,2]
[333527461,1722232239328,-500.0,0.00014689,2]
[333527462,1722232239337,-500.0,0.00014689,2]
[333527463,1722232239347,-500.0,0.00014689,2]
[333527464,1722232239356,-500.0,0.00014689,2]
[333527465,1722232239366,-500.0,0.00014689,2]
[333527466,1722232239375,-500.0,0.00014689,2]
[333527467,1722232239384,-643.31,0.00014689,2]
[333527468,1722232239393,-625.17,0.00014689,2]
[333527469,1722232239402,-500.0,0.00014689,2]
[333527470,1722232239412,-644.33064622,0.00014689,2]
[333527471,1722232239421,-506.03207715,0.00014689,2]
[333527472,1722232239431,-500.0,0.00014689,2]
[333527473,1722232239440,-638.49,0.00014689,2]
[333527474,1722232239449,-500.0,0.00014689,2]
[333527475,1722232239458,-500.0,0.00014689,2]
[333527476,1722232239468,-152.06380355,0.00014689,2]
[333527477,1722232239480,-347.93619645,0.00014689,2]
[333527478,1722232239490,-500.0,0.00014689,2]
[333527479,1722232239499,-505.12737999,0.00014689,2]
[333527480,1722232239508,-500.0,0.00014689,2]
[333527481,1722232239517,-508.73304228,0.00014689,2]
[333527482,1722232239526,-190.6347899,0.00014689,2]
[333527503,1722232243623,-309.3652101,0.00014689,2]
[333527504,1722232243633,-492.70029264,0.00014689,2]
[333527522,1722232349534,173.315561,0.00012986,2]
[333527547,1722232554076,525.04893754,9.999e-05,2]
[333527554,1722232609497,850.05855251,9.999e-05,2]
[333527555,1722232611966,284.82202726,9.999e-05,2]
[333527556,1722232612034,5147.17580473,9.999e-05,2]
[333527558,1722232618567,154.86818526,9.999e-05,2]
[333527559,1722232629630,559.09003319,9.999e-05,2]
[333527560,1722232630706,16276.9865334,9.999e-05,2]
[333527564,1722232680753,155.27367197,9.999e-05,2]
[333527569,1722232711574,155.72831671,9.999e-05,2]
[333527570,1722232718750,196.36879843,9.999e-05,2]
[333527571,1722232734024,155.64795247,9.999e-05,2]
[333527572,1722232748642,248.57268361,9.999e-05,2]
[333527577,1722232798825,196.85950782,9.999e-05,2]
[333527578,1722232801883,155.98171756,9.999e-05,2]
[333527585,1722233139513,-171.96408,0.00012986,2]
[333527586,1722233230131,-166.666666,0.0001262,2]
[333527587,1722233230159,-83.08418743,0.00012964,2]
[333527588,1722233231190,-83.58247857,0.00012964,2]
[333527589,1722233231213,-1819.9014724,0.00012986,2]
[333527590,1722233231236,-173.315561,0.00012986,2]
[333527591,1722233231260,-239.14645697,0.00013,2]
[333527592,1722233231282,-728.10720435,0.00013076,2]
[333527593,1722233236126,-765.46396401,0.00013076,2]
[333527594,1722233246135,-2606.72135023,0.00013076,2]
[333527595,1722233253118,-1321.86053332,0.00013076,2]
[333527596,1722233347116,-339.03,0.00010959,2]
[333527597,1722233347137,-1991.8655524,0.00013076,2]
[333527598,1722233347159,-19477.84694809,0.00013076,2]
[333527599,1722233347184,-163.741123,0.00013195,2]
[333527600,1722233347205,-163.741123,0.00013235,2]
[333527601,1722233347228,-163.741123,0.00013275,2]
[333527602,1722233347248,-166.666666,0.00013308,2]
[333527603,1722233347274,-163.741123,0.00013316,2]
[333527604,1722233347298,-163.741123,0.00013356,2]
[333527605,1722233347318,-163.741123,0.00013397,2]
[333527606,1722233347339,-163.741123,0.00013437,2]
[333527607,1722233347360,-163.741123,0.00013478,2]
[333527608,1722233347381,-163.741123,0.00013518,2]
[333527609,1722233347401,-163.741123,0.00013559,2]
[333527610,1722233347422,-163.741123,0.00013599,2]
[333527611,1722233347442,-163.741123,0.00013639,2]
[333527612,1722233347462,-166.666666,0.00013652,2]
[333527613,1722233347483,-163.741123,0.0001368,2]
[333527614,1722233347502,-500.0,0.00013698,2]
[333527615,1722233347522,-228.022683,0.00013699,2]
[333527616,1722233347541,-339.0279046,0.00013699,2]
[333527617,1722233347563,-163.741123,0.0001372,2]
[333527618,1722233347583,-163.741123,0.00013761,2]
[333527619,1722233347603,-163.741123,0.00013801,2]
[333527620,1722233347625,-163.741123,0.00013842,2]
[333527621,1722233347645,-163.741123,0.00013882,2]
[333527622,1722233347665,-166.666666,0.00013996,2]
[333527623,1722233347690,-150.112233,0.00014,2]
[333527624,1722233347714,-371.181902,0.00014247,2]
[333527625,1722233347736,-183.665349,0.00014247,2]
[333527626,1722233347759,-166.666666,0.0001434,2]
[333527627,1722233347779,-308.66592259,0.0001434,2]
[333527628,1722233347802,-176.24928531,0.00014468,2]
[333527629,1722233398325,150.112233,0.00012986,2]
[333527630,1722233398346,25.462766,0.00012986,2]
[333527631,1722233409037,450.4151705,0.00013678,2]
[333527632,1722233409186,339.84,0.00010959,2]
[333527657,1722233432721,-477.25748078,0.00014416,2]
[333527692,1722233438649,-1741.99341645,0.00014416,2]
[333527698,1722233438688,-835.95587856,0.00014416,2]
[333527700,1722233438698,-1991.8655524,0.00014468,2]
[333527702,1722233438707,-7971.85343701,0.00014673,2]
[333527704,1722233438719,-83.09035728,0.00014673,2]
[333527706,1722233438728,-219.41823672,0.00014678,2]
[333527709,1722233438748,-280.58176328,0.00014678,2]
[333527711,1722233438757,-362.5669103,0.00014678,2]
[333527713,1722233438766,-151.0,0.00014679,2]
[333527715,1722233438776,-151.0,0.00014679,2]
[333527717,1722233438786,-39749.8082156,0.00014679,2]
[333527720,1722233438798,-2575.02208082,0.0001468,2]
[333527722,1722233438810,-5145.77000925,0.0001468,2]
[333527723,1722233438826,-16921.70635968,0.0001468,2]
[333527735,1722233443083,-15107.30976585,0.0001468,2]
[333527736,1722233443092,-935.20929466,0.00014689,5]
[333527737,1722233443102,-507.79757809,0.00014689,2]
[333527738,1722233443111,-500.34871515,0.00014689,2]
[333527739,1722233443121,-500.0,0.00014689,2]
[333527740,1722233443130,-503.25740556,0.00014689,2]
[333527741,1722233443140,-500.0,0.00014689,2]
[333527742,1722233443149,-506.03378128,0.00014689,2]
[333527743,1722233443159,-500.0,0.00014689,2]
[333527744,1722233443168,-500.0,0.00014689,2]
[333527745,1722233443178,-255.15035679,0.00014689,2]
[333527746,1722233443187,-508.37579148,0.00014689,2]
[333527747,1722233443197,-494.93005023,0.00014689,2]
[333527748,1722233443207,-500.0,0.00014689,2]
[333527749,1722233443221,-1022.6713271,0.00014689,2]
[333527751,1722233443232,-506.1703253,0.00014689,2]
[333527752,1722233443242,-248.59972455,0.00014689,2]
[333527753,1722233443251,-522.36028457,0.00014689,2]
[333527754,1722233443261,-500.0,0.00014689,2]
[333527755,1722233443271,-500.0,0.00014689,2]
[333527756,1722233443281,-500.0,0.00014689,2]
[333527757,1722233443291,-500.0,0.00014689,2]
[333527758,1722233443300,-500.0,0.00014689,2]
[333527759,1722233443310,-500.0,0.00014689,2]
[333527760,1722233443320,-500.0,0.00014689,2]
[333527761,1722233443331,-512.30960775,0.00014689,2]
[333527763,1722233443340,-500.0,0.00014689,2]
[333527765,1722233443350,-500.0,0.00014689,2]
[333527767,1722233443360,-500.0,0.00014689,2]
[333527769,1722233443369,-507.10437537,0.00014689,2]
[333527771,1722233443378,-509.66911467,0.00014689,2]
[333527773,1722233443388,-520.23699786,0.00014689,2]
[333527775,1722233443397,-562.90123855,0.00014689,2]
[333527777,1722233443406,-500.0,0.00014689,2]
[333527779,1722233443416,-500.0,0.00014689,2]
[333527781,1722233443425,-500.0,0.00014689,2]
[333527783,1722233443435,-500.0,0.00014689,2]
[333527784,1722233443444,-500.0,0.00014689,2]
[333527786,1722233443454,-615.2683627,0.00014689,2]
[333527789,1722233443463,-500.0,0.00014689,2]
[333527791,1722233443473,-500.0,0.00014689,2]
[333527793,1722233443483,-500.0,0.00014689,2]
[333527795,1722233443492,-621.66820482,0.00014689,2]
[333527797,1722233443501,-500.0,0.00014689,2]
[333527799,1722233443511,-500.0,0.00014689,2]
[333527801,1722233443520,-500.0,0.00014689,2]
[333527802,1722233443530,-287.85659771,0.00014689,2]
[333527805,1722233443540,-500.0,0.00014689,2]
[333527807,1722233443549,-500.0,0.00014689,2]
[333527809,1722233443559,-511.1433934,0.00014689,2]
[333527811,1722233443568,-215.6519783,0.00014689,2]
[333527813,1722233443581,-288.78055489,0.00014689,2]
[333527815,1722233443591,-500.0,0.00014689,2]
[333527817,1722233443600,-500.0,0.00014689,2]
[333527819,1722233443610,-511.7425947,0.00014689,2]
[333527821,1722233443619,-500.0,0.00014689,2]
[333527823,1722233443629,-500.0,0.00014689,2]
[333527825,1722233443639,-500.0,0.00014689,2]
[333527827,1722233443648,-506.79016477,0.00014689,2]
[333527828,1722233443658,-506.51951383,0.00014689,2]
[333527829,1722233443667,-151.67232239,0.00014689,2]
[333527830,1722233443676,-500.0,0.00014689,2]
[333527831,1722233443686,-500.0,0.00014689,2]
[333527832,1722233443695,-500.0,0.00014689,2]
[333527833,1722233443705,-500.0,0.00014689,2]
[333527834,1722233443715,-164.26021029,0.00014689,2]
[333527835,1722233443724,-500.0,0.00014689,2]
[333527836,1722233443734,-500.0,0.00014689,2]
[333527837,1722233443744,-500.0,0.00014689,2]
[333527838,1722233443754,-500.0,0.00014689,2]
[333527839,1722233443763,-500.0,0.00014689,2]
[333527840,1722233443772,-500.0,0.00014689,2]
[333527841,1722233443781,-500.0,0.00014689,2]
[333527842,1722233443791,-390.01803412,0.00014689,2]
[333527844,1722233443801,-500.0,0.00014689,2]
[333527846,1722233443810,-228.62456524,0.00014689,2]
[333527847,1722233443819,-500.0,0.00014689,2]
[333527849,1722233443829,-500.0,0.00014689,2]
[333527850,1722233443838,-500.0,0.00014689,2]
[333527851,1722233443847,-500.0,0.00014689,2]
[333527852,1722233443857,-500.0,0.00014689,2]
[333527853,1722233443866,-271.35095789,0.00014689,2]
[333527854,1722233443876,-500.0,0.00014689,2]
[333527855,1722233443887,-500.0,0.00014689,2]
[333527856,1722233443899,-219.84,0.00014689,2]
[333527857,1722233443908,-500.0,0.00014689,2]
[333527858,1722233443917,-500.0,0.00014689,2]
[333527859,1722233443926,-505.75543462,0.00014689,2]
[333527860,1722233443936,-500.0,0.00014689,2]
[333527861,1722233443945,-502.33048211,0.00014689,2]
[333527862,1722233443955,-500.0,0.00014689,2]
[333527863,1722233443966,-500.0,0.00014689,2]
[333527864,1722233443976,-500.0,0.00014689,2]
[333527865,1722233443985,-500.0,0.00014689,2]
[333527866,1722233443994,-252.57645115,0.00014689,2]
[333527867,1722233444006,-254.07419847,0.00014689,2]
[333527868,1722233444016,-500.0,0.00014689,2]
[333527869,1722233444026,-500.0,0.00014689,2]
[333527871,1722233444035,-422.05704426,0.00014689,2]
[333527872,1722233444044,-500.0,0.00014689,2]
[333527873,1722233444054,-166.72,0.00014689,2]
[333527874,1722233444064,-500.0,0.00014689,2]
[333527875,1722233444074,-500.0,0.00014689,2]
[333527876,1722233444084,-500.0,0.00014689,2]
[333527877,1722233444094,-181.66802739,0.00014689,2]
[333527878,1722233444105,-322.51255586,0.00014689,2]
[333527879,1722233444114,-309.79618873,0.00014689,2]
[333527880,1722233444154,-186.24631023,0.00014579,2]
[333527881,1722233444164,-198.12141551,0.00014689,2]
[333527882,1722233444173,-388.92222954,0.00014689,2]
[333527883,1722233444184,-111.07777046,0.00014689,2]
[333527884,1722233444193,-500.0,0.00014689,2]
[333527885,1722233444205,-500.0,0.00014689,2]
[333527886,1722233444230,-201.39733584,0.00014689,2]
[333527887,1722233444240,-248.75,0.00014689,2]
[333527888,1722233444251,-22.16390269,0.00014689,2]
[333527889,1722233444263,-477.83609731,0.00014689,2]
[333527890,1722233444272,-406.33203309,0.00014689,2]
[333527891,1722233444281,-500.0,0.00014689,2]
[333527892,1722233444291,-504.46,0.00014689,2]
[333527893,1722233444301,-206.45203253,0.00014689,2]
[333527898,1722233446793,-293.54796747,0.00014689,2]
[333527899,1722233446802,-500.0,0.00014689,2]
[333527900,1722233446900,-500.0,0.00014689,2]
[333527901,1722233446912,-500.0,0.00014689,2]
[333527902,1722233446922,-500.0,0.00014689,2]
[333527903,1722233446931,-505.64,0.00014689,2]
[333527904,1722233446941,-503.01522322,0.00014689,2]
[333527905,1722233446951,-506.37014841,0.00014689,2]
[333527906,1722233446960,-500.0,0.00014689,2]
[333527907,1722233446969,-588.71,0.00014689,2]
[333527908,1722233446979,-500.0,0.00014689,2]
[333527909,1722233446988,-428.2924565,0.00014689,2]
[333527910,1722233446997,-500.0,0.00014689,2]
[333527911,1722233447006,-500.0,0.00014689,2]
[333527912,1722233447016,-312.48020744,0.00014689,2]
[333527913,1722233447025,-505.66961826,0.00014689,2]
[333527914,1722233447034,-500.0,0.00014689,2]
[333527915,1722233447043,-500.0,0.00014689,2]
[333527916,1722233447052,-500.0,0.00014689,2]
[333527917,1722233447062,-500.0,0.00014689,2]
[333527918,1722233447071,-500.0,0.00014689,2]
[333527919,1722233447080,-1154.08,0.00014689,2]
[333527920,1722233447090,-523.24,0.00014689,2]
[333527922,1722233447099,-3180.45,0.00014689,2]
[333527923,1722233447110,-500.0,0.00014689,2]
[333527924,1722233447119,-510.40950242,0.00014689,2]
[333527925,1722233447129,-500.0,0.00014689,2]
[333527926,1722233447138,-501.19288238,0.00014689,2]
[333527927,1722233447147,-500.0,0.00014689,2]
[333527928,1722233447156,-500.0,0.00014689,2]
[333527929,1722233447166,-500.0,0.00014689,2]
[333527930,1722233447175,-500.0,0.00014689,2]
[333527931,1722233447185,-500.0,0.00014689,2]
[333527932,1722233447194,-500.0,0.00014689,2]
[333527933,1722233447203,-500.0,0.00014689,2]
[333527934,1722233447213,-500.0,0.00014689,2]
[333527935,1722233447224,-500.0,0.00014689,2]
[333527936,1722233447233,-500.0,0.00014689,2]
[333527937,1722233447242,-500.0,0.00014689,2]
[333527938,1722233447251,-573.53,0.00014689,2]
[333527939,1722233447262,-519.3,0.00014689,2]
[333527940,1722233447271,-295.1,0.00014689,2]
[333527941,1722233447281,-500.0,0.00014689,2]
[333527942,1722233447291,-500.0,0.00014689,2]
[333527943,1722233447301,-572.0,0.00014689,2]
[333527944,1722233447313,-500.0,0.00014689,2]
[333527945,1722233447323,-507.37135623,0.00014689,2]
[333527946,1722233447335,-500.0,0.00014689,2]
[333527947,1722233447345,-500.0,0.00014689,2]
[333527948,1722233447354,-500.0,0.00014689,2]
[333527949,1722233447364,-583.18808271,0.00014689,2]
[333527950,1722233447373,-500.0,0.00014689,2]
[333527951,1722233447383,-500.0,0.00014689,2]
[333527952,1722233447393,-500.0,0.00014689,2]
[333527953,1722233447402,-500.0,0.00014689,2]
[333527954,1722233447411,-500.0,0.00014689,2]
[333527955,1722233447422,-500.0,0.00014689,2]
[333527956,1722233447432,-500.0,0.00014689,2]
[333527957,1722233447442,-500.0,0.00014689,2]
[333527958,1722233447451,-500.0,0.00014689,2]
[333527959,1722233447461,-500.0,0.00014689,2]
[333527960,1722233447471,-500.0,0.00014689,2]
[333527961,1722233447480,-505.23021985,0.00014689,2]
[333527962,1722233447490,-500.0,0.00014689,2]
[333527963,1722233447500,-903.74,0.00014689,2]
[333527964,1722233447509,-500.0,0.00014689,2]
[333527965,1722233447519,-506.46853331,0.00014689,2]
[333527966,1722233447528,-151.0,0.00014689,2]
[333527967,1722233447538,-151.0,0.00014689,2]
[333527968,1722233447547,-500.0,0.00014689,2]
[333527969,1722233447556,-151.0,0.00014689,2]
[333527970,1722233447566,-151.0,0.00014689,2]
[333527971,1722233447575,-151.0,0.00014689,2]
[333527972,1722233447585,-151.0,0.00014689,2]
[333527973,1722233447596,-152.52,0.00014689,2]
[333527974,1722233447606,-500.0,0.00014689,2]
[333527975,1722233447615,-500.0,0.00014689,2]
[333527976,1722233447625,-500.0,0.00014689,2]
[333527977,1722233447635,-500.0,0.00014689,2]
[333527978,1722233447644,-500.0,0.00014689,2]
[333527979,1722233447653,-500.0,0.00014689,2]
[333527980,1722233447663,-500.0,0.00014689,2]
[333527981,1722233447672,-500.0,0.00014689,2]
[333527982,1722233447681,-500.0,0.00014689,2]
[333527983,1722233447690,-500.0,0.00014689,2]
[333527984,1722233447699,-500.0,0.00014689,2]
[333527985,1722233447709,-500.0,0.00014689,2]
[333527986,1722233447718,-500.0,0.00014689,2]
[333527987,1722233447727,-586.68,0.00014736,7]
[333527988,1722233447736,-200.0,0.00014927,2]
[333527989,1722233447746,-151.0,0.00014953,2]
[333527990,1722233447755,-39749.8082156,0.00014953,2]
[333527991,1722233447764,-500.0,0.00014963,2]
[333527992,1722233447773,-500.0,0.00014963,2]
[333527993,1722233447783,-500.0,0.00014963,2]
[333527994,1722233447792,-500.0,0.00014963,2]
[333527995,1722233447801,-500.0,0.00014963,2]
[333527996,1722233447811,-500.0,0.00014963,2]
[333527997,1722233447821,-500.0,0.00014963,2]
[333527998,1722233447830,-500.0,0.00014963,2]
[333527999,1722233447840,-504.36842145,0.00014963,2]
[333528000,1722233447849,-509.02723048,0.00014963,2]
[333528001,1722233447858,-506.0630901,0.00014963,2]
[333528002,1722233447867,-500.0,0.00014963,2]
[333528003,1722233447876,-525.84715188,0.00014963,2]
[333528004,1722233447886,-513.37927877,0.00014963,2]
[333528005,1722233447895,-504.4232091,0.00014963,2]
[333528006,1722233447904,-500.0,0.00014963,2]
[333528007,1722233447914,-500.0,0.00014963,2]
[333528008,1722233447923,-500.0,0.00014963,2]
[333528009,1722233447932,-500.0,0.00014963,2]
[333528010,1722233447941,-645.64,0.00014963,2]
[333528011,1722233447951,-500.0,0.00014963,2]
[333528012,1722233447959,-500.0,0.00014963,2]
[333528013,1722233447969,-500.0,0.00014963,2]
[333528014,1722233447978,-500.0,0.00014963,2]
[333528015,1722233447987,-165.24,0.00014963,2]
[333528016,1722233447997,-500.0,0.00014963,2]
[333528017,1722233448006,-575.81673787,0.00014963,2]
[333528018,1722233448015,-206.01,0.00014963,2]
[333528019,1722233448025,-500.0,0.00014963,2]
[333528020,1722233448035,-599.25,0.00014963,2]
[333528021,1722233448045,-232.49089186,0.00014963,2]
[333528022,1722233448054,-500.0,0.00014963,2]
[333528023,1722233448063,-500.0,0.00014963,2]
[333528024,1722233448073,-369.88647194,0.00014963,2]
[333528025,1722233448082,-500.0,0.00014963,2]
[333528026,1722233448091,-173.45,0.00014963,2]
[333528027,1722233448100,-407.4,0.00014963,2]
[333528028,1722233448109,-500.0,0.00014963,2]